bitfinex/quotes_BTCUSD_20250421
["timestamp","ask_amount","ask_price","bid_price","bid_amount"]
[1745244703323,0.8415405,87387.0,87386.0,0.0005]
[1745244703731,0.8425405,87387.0,87386.0,0.0005]
[1745244703923,0.8415405,87387.0,87386.0,0.0005]
[1745244704133,0.8435405,87387.0,87386.0,0.0005]
[1745244705389,0.7368205,87387.0,87386.0,0.0005]
[1745244705589,0.8435405,87387.0,87386.0,0.0005]
[1745244707678,0.8435805,87387.0,87386.0,0.0005]
[1745244708237,0.8436205,87387.0,87386.0,0.0005]
[1745244708676,0.8436605,87387.0,87386.0,0.0005]
[1745244709853,0.7369405,87387.0,87386.0,0.0005]
[1745244710102,0.6871405,87387.0,87386.0,0.0015]
[1745244710315,0.00811667,87387.0,87386.0,0.23036961]
[1745244710924,0.00611667,87387.0,87386.0,0.23036961]
[1745244711122,0.00012,87387.0,87386.0,0.23036961]
[1745244711345,0.00112,87387.0,87386.0,0.23036961]
[1745244711701,0.00112,87387.0,87386.0,0.22536961]
[1745244712387,0.00112,87387.0,87386.0,0.23652637]
[1745244713230,0.00012,87387.0,87386.0,0.23652637]
[1745244715068,0.00012,87387.0,87386.0,0.23652637]
[1745244715947,0.00012,87387.0,87386.0,0.01115676]
[1745244716249,0.00012,87387.0,87386.0,0.24002637]
[1745244717506,0.00012,87387.0,87386.0,0.22986961]
[1745244723500,0.00012,87387.0,87386.0,0.24002537]
[1745244723866,0.11956791,87387.0,87386.0,0.01115576]
[1745244724063,0.12466322,87387.0,87386.0,0.001]
[1745244725606,0.54086322,87387.0,87386.0,0.001]
[1745244726662,0.42141531,87387.0,87386.0,0.22986961]
[1745244726832,0.42241531,87387.0,87386.0,0.22986961]
[1745244727035,0.42241531,87387.0,87386.0,0.24002821]
[1745244727261,0.42241531,87387.0,87386.0,0.25149862]
[1745244729389,0.42241531,87387.0,87386.0,0.24134002]
[1745244729834,0.42241531,87387.0,87386.0,0.001]
[1745244730911,0.41732,87387.0,87386.0,0.001]
[1745244731098,0.42238821,87387.0,87386.0,0.001]
[1745244731505,0.00618821,87387.0,87386.0,0.001]
[1745244731703,0.00112,87387.0,87386.0,0.001]
[1745244734159,0.00618821,87387.0,87386.0,0.001]
[1745244734365,0.00112,87387.0,87386.0,0.001]
[1745244735679,0.00112,87387.0,87386.0,0.01161762]
[1745244736730,0.00012,87387.0,87386.0,0.01161762]
[1745244740725,0.3951349,87387.0,87386.0,0.01161762]
[1745244740939,0.43018967,87387.0,87386.0,0.001]
[1745244741146,0.44161687,87387.0,87386.0,0.001]
[1745244741478,0.41161687,87387.0,87386.0,0.001]
[1745244743136,0.41261687,87387.0,87386.0,0.001]
[1745244743877,0.82881687,87387.0,87386.0,0.001]
[1745244745128,0.39035454,87371.0,87366.0,0.0114461]
[1745244745392,0.09532444,87370.0,87368.0,0.00013511]
[1745244745994,0.22891414,87369.0,87368.0,0.00013511]
[1745244746116,0.34836205,87369.0,87368.0,0.00013511]
[1745244746338,0.35333037,87369.0,87368.0,0.00013511]
[1745244746759,0.40053037,87369.0,87368.0,0.00013511]
[1745244749218,0.00496832,87369.0,87368.0,0.00013511]
[1745244749629,0.4162,87371.0,87368.0,0.00013511]
[1745244749630,0.4162,87371.0,87369.0,0.22891414]
[1745244750398,0.22998877,87387.0,87383.0,0.01144387]
[1745244750602,0.01144374,87384.0,87380.0,0.01144426]
[1745244751006,0.11780348,87386.0,87382.0,0.011444]
[1745244751411,0.11780348,87386.0,87382.0,0.24032403]
[1745244751976,0.10636,87386.0,87383.0,0.01144387]
[1745244752195,0.10636,87386.0,87384.0,0.22887485]
[1745244752422,0.00012,87387.0,87386.0,0.22886961]
[1745244753251,0.00012,87387.0,87386.0,0.22882961]
[1745244753630,0.00112,87387.0,87386.0,0.22882961]
[1745244755004,0.00116,87387.0,87386.0,0.22882961]
[1745244755859,0.00116,87387.0,87386.0,0.27672961]
[1745244756061,0.00116,87387.0,87386.0,0.63127046]
[1745244756451,0.00016,87387.0,87386.0,0.63127046]
[1745244756829,0.00016,87387.0,87386.0,0.63227046]
[1745244757233,0.4162,87411.0,87410.0,0.22880677]
[1745244757399,0.09227951,87419.0,87418.0,0.22878583]
[1745244757599,0.21172742,87419.0,87418.0,0.22878583]
[1745244757913,0.09227951,87419.0,87418.0,0.22878583]
[1745244758517,0.09236712,87419.0,87418.0,0.22878583]
[1745244758965,0.08736712,87419.0,87418.0,0.22878583]
[1745244759168,8.761e-05,87419.0,87418.0,0.22878583]
[1745244760260,0.00012761,87419.0,87418.0,0.22878583]
[1745244760643,0.00112761,87419.0,87418.0,0.22878583]
[1745244761063,0.00116761,87419.0,87418.0,0.22878583]
[1745244761352,0.00116761,87419.0,87417.0,0.22878845]
[1745244762264,0.00016761,87419.0,87417.0,0.22878845]
[1745244762498,0.00116761,87419.0,87417.0,0.22878845]
[1745244763444,0.00653432,87418.0,87417.0,0.22878845]
[1745244763641,0.00653432,87418.0,87413.0,0.24023765]
[1745244763974,0.00653432,87418.0,87414.0,0.24023387]
[1745244764183,0.00653432,87418.0,87415.0,0.24023101]
[1745244764390,0.00653432,87418.0,87416.0,0.22878907]
[1745244764592,0.00116761,87419.0,87416.0,0.24022862]
[1745244764989,0.00677789,87418.0,87416.0,0.24022862]
[1745244766132,0.00777789,87418.0,87416.0,0.24022862]
[1745244766278,0.00677789,87418.0,87416.0,0.24022862]
[1745244766488,0.00777789,87418.0,87416.0,0.24022862]
[1745244766690,0.00777789,87418.0,87417.0,0.06252858]
[1745244766928,0.001,87418.0,87417.0,0.10922858]
[1745244767160,0.001,87418.0,87417.0,0.33499649]
[1745244767500,0.0004221,87422.0,87421.0,0.24331883]
[1745244769580,0.0004221,87422.0,87421.0,0.24531883]
[1745244770432,0.0004221,87422.0,87421.0,0.002]
[1745244771673,0.0004221,87422.0,87420.0,0.22877844]
[1745244772057,0.0004221,87422.0,87421.0,0.001]
[1745244772817,0.0004221,87422.0,87420.0,0.22877844]
[1745244773034,0.0004221,87422.0,87420.0,0.22977844]
[1745244773254,0.0004221,87422.0,87420.0,0.22877844]
[1745244773610,0.0004221,87422.0,87421.0,0.001]
[1745244774851,0.0004221,87422.0,87420.0,0.22877844]
[1745244774979,0.0004221,87422.0,87420.0,0.22977844]
[1745244775427,0.0004221,87422.0,87420.0,0.22877844]
[1745244775642,0.0004221,87422.0,87421.0,0.001]
[1745244776508,0.0004221,87422.0,87420.0,0.22877844]
[1745244776828,0.0004221,87422.0,87420.0,0.22977844]
[1745244778252,0.0004221,87422.0,87420.0,0.22877844]
[1745244778452,0.0004221,87422.0,87421.0,0.001]
[1745244778655,0.0004221,87422.0,87420.0,0.23106597]
[1745244778901,0.0004221,87422.0,87421.0,0.01454085]
[1745244779733,0.0004221,87422.0,87421.0,0.12563315]
[1745244780375,0.0004221,87422.0,87421.0,0.12334574]
[1745244780716,0.0004221,87422.0,87421.0,0.24508106]
[1745244780917,1e-08,87422.0,87421.0,0.58279365]
[1745244781885,1e-08,87422.0,87421.0,0.58179365]
[1745244785756,1e-08,87422.0,87421.0,0.68803365]
[1745244786395,1e-08,87422.0,87421.0,0.67762876]
[1745244788912,0.000422,87452.0,87443.0,0.01143602]
[1745244789075,0.000422,87452.0,87451.0,0.24324035]
[1745244789276,0.00087222,87452.0,87451.0,0.24324035]
[1745244789496,0.00087222,87452.0,87451.0,0.25366153]
[1745244789717,0.00087222,87452.0,87451.0,0.23912068]
[1745244790224,0.00087222,87452.0,87451.0,0.2286995]
[1745244791460,0.00187222,87452.0,87451.0,0.2286995]
[1745244793559,0.00187222,87452.0,87449.0,0.24013757]
[1745244793778,0.00187222,87452.0,87446.0,0.01143562]
[1745244793779,0.16594791,87451.0,87446.0,0.01143562]
[1745244794023,0.0465,87451.0,87447.0,0.01143549]
[1745244794239,0.0465,87451.0,87448.0,0.01143536]
[1745244794471,0.0465,87451.0,87448.0,0.24014052]
[1745244794686,0.0465,87451.0,87448.0,0.01143536]
[1745244794911,0.0465,87451.0,87449.0,0.22870473]
[1745244795124,0.0465,87451.0,87448.0,0.2401409]
[1745244795332,0.0475,87451.0,87450.0,0.22870211]
[1745244795544,0.0465,87451.0,87450.0,0.22870211]
[1745244795751,0.04754,87451.0,87448.0,0.01143536]
[1745244796004,0.00104,87451.0,87448.0,0.24014062]
[1745244796361,0.00108,87451.0,87448.0,0.24014062]
[1745244796578,0.00108,87451.0,87449.0,0.22870268]
[1745244796787,0.00108,87451.0,87448.0,0.24014062]
[1745244797044,0.00108,87451.0,87429.0,0.01143785]
[1745244797045,0.0465,87439.0,87429.0,0.01143785]
[1745244797370,0.13088458,87438.0,87434.0,0.01143719]
[1745244797572,0.0465,87439.0,87437.0,0.22873611]
[1745244797801,0.0465,87439.0,87436.0,0.01143693]
[1745244798027,0.0465,87439.0,87437.0,0.22873611]
[1745244798233,0.01066833,87449.0,87448.0,0.22870578]
[1745244799044,0.01066833,87449.0,87447.0,0.01143549]
[1745244799257,0.4162,87450.0,87448.0,0.22870734]
[1745244799458,4e-05,87449.0,87448.0,0.22870734]
[1745244799669,0.01147523,87449.0,87444.0,0.24015127]
[1745244799878,8e-05,87449.0,87446.0,0.24014621]
[1745244800122,8e-05,87449.0,87448.0,0.22870734]
[1745244800344,0.00012,87449.0,87447.0,0.22870996]
[1745244800767,0.00212,87449.0,87447.0,0.22870996]
[1745244801419,0.00012,87449.0,87447.0,0.22870996]
[1745244801845,0.00112,87449.0,87447.0,0.22870996]
[1745244802751,0.12056791,87449.0,87446.0,0.01143562]
[1745244802979,0.12056791,87449.0,87446.0,0.2401461]
[1745244803222,0.12056791,87449.0,87447.0,0.22870797]
[1745244803656,0.00112,87449.0,87447.0,0.22870797]
[1745244804093,0.00012,87449.0,87447.0,0.22870797]
[1745244804316,0.00212,87449.0,87447.0,0.22870797]
[1745244804555,0.00012,87449.0,87447.0,0.22870797]
[1745244804775,0.00012,87449.0,87447.0,0.22870764]
[1745244805017,0.00212,87449.0,87447.0,0.22870764]
[1745244805243,0.00012,87449.0,87447.0,0.22870764]
[1745244805437,0.00112,87449.0,87447.0,0.22870764]
[1745244807537,0.00112,87449.0,87446.0,0.2401461]
[1745244807745,0.00112,87449.0,87447.0,0.22870754]
[1745244808118,0.00112,87449.0,87446.0,0.24014643]
[1745244808338,0.00112,87449.0,87448.0,0.22870734]
[1745244809909,0.00012,87449.0,87448.0,0.22870734]
[1745244810433,0.00212,87449.0,87448.0,0.22870734]
[1745244810847,0.00012,87449.0,87448.0,0.22870734]
[1745244811308,0.00112,87449.0,87448.0,0.22870734]
[1745244818885,0.00112,87449.0,87446.0,0.24014643]
[1745244818886,0.00112,87449.0,87444.0,0.22871578]
[1745244819107,0.22982615,87449.0,87446.0,0.01143562]
[1745244819304,0.01255523,87449.0,87445.0,0.24014918]
[1745244819522,0.24126206,87449.0,87445.0,0.01143575]
[1745244820201,0.24026206,87449.0,87445.0,0.01143575]
[1745244820439,0.24026206,87449.0,87436.0,0.22873826]
[1745244820440,0.01143745,87432.0,87427.0,0.01143811]
[1745244820657,0.228734,87438.0,87433.0,0.01143732]
[1745244820891,0.24016907,87439.0,87433.0,0.01143732]
[1745244821134,0.01143654,87439.0,87434.0,0.24017947]
[1745244821361,0.01143654,87439.0,87435.0,0.22873953]
[1745244821557,0.01143628,87441.0,87436.0,0.24017376]
[1745244821834,0.24015564,87444.0,87439.0,0.24016726]
[1745244822056,0.01143602,87443.0,87439.0,0.01143654]
[1745244822249,0.01143602,87443.0,87436.0,0.01143693]
[1745244822250,0.22872973,87440.0,87435.0,0.01143706]
[1745244822392,0.0114368,87437.0,87433.0,0.2401839]
[1745244822626,0.24016193,87441.0,87436.0,0.01143693]
[1745244822825,0.01143641,87440.0,87436.0,0.01143693]
[1745244823067,0.11944791,87443.0,87442.0,0.22872303]
[1745244823270,0.01155523,87449.0,87444.0,0.2287178]
[1745244823271,0.00012,87449.0,87444.0,0.2287178]
[1745244828324,0.00012,87449.0,87448.0,0.22870734]
[1745244828961,0.00012,87449.0,87448.0,0.24553507]
[1745244829181,0.00012,87449.0,87448.0,0.24324819]
[1745244830551,0.0004221,87457.0,87448.0,0.24324819]
[1745244830552,1e-08,87462.0,87461.0,0.5832142]
[1745244830798,1e-08,87462.0,87461.0,0.90316211]
[1745244831028,0.00013502,87462.0,87461.0,0.90316211]
[1745244831272,1e-08,87468.0,87467.0,0.58319851]
[1745244831502,1e-08,87468.0,87467.0,0.70264642]
[1745244831937,1e-08,87468.0,87467.0,0.79984642]
[1745244832167,1e-08,87475.0,87474.0,0.58318021]
[1745244832414,1e-08,87475.0,87474.0,0.80882812]
[1745244833316,1e-08,87475.0,87474.0,0.68938021]
[1745244833542,1e-08,87475.0,87474.0,0.80882812]
[1745244834224,1e-08,87484.0,87483.0,0.22861584]
[1745244834459,1e-08,87486.0,87485.0,0.58315146]
[1745244834678,1e-08,87486.0,87485.0,0.70259937]
[1745244836555,1e-08,87489.0,87488.0,0.58314362]
[1745244836828,1e-08,87489.0,87488.0,0.70259153]
[1745244837079,1e-08,87489.0,87488.0,0.79979153]
[1745244837813,1e-08,87489.0,87488.0,0.80079153]
[1745244838077,1e-08,87489.0,87488.0,0.79979153]
[1745244838333,1e-08,87489.0,87488.0,0.80179153]
[1745244839496,1e-08,87489.0,87488.0,0.90595153]
[1745244839733,4.001e-05,87489.0,87488.0,0.90695153]
[1745244840209,8.001e-05,87489.0,87488.0,0.90695153]
[1745244840622,1e-08,87489.0,87488.0,0.90595153]
[1745244840837,0.00597807,87518.0,87488.0,0.90595153]
[1745244840838,0.00597807,87518.0,87509.0,0.01142739]
[1745244841050,0.0004221,87537.0,87531.0,0.01142452]
[1745244841260,0.00055709,87537.0,87536.0,0.24301827]
[1745244841497,0.00055709,87537.0,87536.0,0.36246618]
[1745244841712,0.00055709,87537.0,87536.0,0.76307999]
[1745244841934,0.00055709,87537.0,87536.0,0.86919999]
[1745244842992,0.00055709,87537.0,87536.0,0.70055208]
[1745244843620,0.00055709,87537.0,87536.0,0.81999999]
[1745244844036,0.00059709,87537.0,87536.0,0.81999999]
[1745244844261,0.00159709,87537.0,87536.0,0.81999999]
[1745244844408,0.00063709,87537.0,87536.0,0.81999999]
[1745244844613,0.00063709,87537.0,87536.0,0.86799999]
[1745244844861,0.00067709,87537.0,87536.0,0.86799999]
[1745244845180,0.00071709,87537.0,87536.0,0.86799999]
[1745244845377,1e-08,87551.0,87550.0,0.58298174]
[1745244845586,0.0004497,87551.0,87550.0,0.69738965]
[1745244845798,0.0004497,87551.0,87550.0,0.69734965]
[1745244847159,1e-08,87551.0,87550.0,0.69734965]
[1745244847976,0.0459,87580.0,87566.0,0.01454085]
[1745244848184,0.00431349,87587.0,87572.0,0.24288435]
[1745244848185,0.00055705,87573.0,87572.0,0.24288435]
[1745244849235,0.00155705,87573.0,87572.0,0.24288435]
[1745244849422,0.00055705,87573.0,87572.0,0.24288435]
[1745244849625,0.00055705,87573.0,87572.0,0.2283435]
[1745244849830,0.00155705,87573.0,87570.0,0.23980806]
[1745244849988,0.00159705,87573.0,87570.0,0.23980806]
[1745244850192,0.00159705,87573.0,87572.0,0.2283835]
[1745244850404,0.00163705,87573.0,87572.0,0.2283835]
[1745244850814,0.00167705,87573.0,87572.0,0.2283835]
[1745244851010,0.00171705,87573.0,87572.0,0.24292435]
[1745244851208,0.00175705,87573.0,87572.0,0.24292435]
[1745244851580,0.00175705,87573.0,87572.0,0.2283835]
[1745244851581,0.00183705,87573.0,87572.0,0.2283835]
[1745244852001,0.00183705,87573.0,87556.0,0.01142126]
[1745244852002,0.0453,87572.0,87556.0,0.01142126]
[1745244852206,0.05671917,87572.0,87565.0,0.01142008]
[1745244852527,0.00719584,87571.0,87570.0,0.01454085]
[1745244852853,0.40283705,87573.0,87571.0,0.2283861]
[1745244853055,0.40183705,87573.0,87572.0,0.01454085]
[1745244853318,0.00183705,87573.0,87572.0,0.12058085]
[1745244853616,0.00183705,87573.0,87572.0,0.12286433]
[1745244854024,0.00283705,87573.0,87572.0,0.01454085]
[1745244854479,0.00283705,87573.0,87572.0,0.47398876]
[1745244854891,0.00283705,87573.0,87572.0,0.35454085]
[1745244855274,0.00183705,87573.0,87572.0,0.35454085]
[1745244855489,0.00283705,87573.0,87572.0,0.35454085]
[1745244856960,0.00283705,87573.0,87572.0,0.01454085]
[1745244857385,0.00283705,87573.0,87572.0,0.57067224]
[1745244857593,0.00283705,87573.0,87572.0,0.56838876]
[1745244858219,0.002,87579.0,87572.0,0.56838876]
[1745244858220,0.00125915,87579.0,87578.0,0.5829087]
[1745244858435,0.00125915,87579.0,87578.0,0.70235661]
[1745244859712,1e-08,87580.0,87579.0,0.35454085]
[1745244859933,0.00431349,87587.0,87586.0,0.58288784]
[1745244859934,1e-08,87587.0,87586.0,0.58288784]
[1745244860142,1e-08,87587.0,87586.0,0.80833575]
[1745244860274,1e-08,87587.0,87586.0,0.81991414]
[1745244860929,1e-08,87587.0,87586.0,0.71391414]
[1745244861126,1e-08,87587.0,87586.0,0.81991414]
[1745244861804,1e-08,87587.0,87586.0,0.23992538]
[1745244862040,1e-08,87587.0,87586.0,0.22934699]
[1745244862221,1e-08,87587.0,87586.0,0.22834699]
[1745244862434,1e-08,87587.0,87582.0,0.22835696]
[1745244862668,1e-08,87587.0,87572.0,0.0487]
[1745244862669,0.01141878,87575.0,87572.0,0.001]
[1745244862907,0.01141839,87578.0,87573.0,0.01141904]
[1745244863128,0.01141839,87578.0,87572.0,0.001]
[1745244863129,0.23979445,87575.0,87572.0,0.001]
[1745244863358,0.2352481,87574.0,87572.0,0.001]
[1745244863796,0.11944791,87573.0,87572.0,0.001]
[1745244864013,0.12631028,87573.0,87572.0,0.001]
[1745244864251,0.59715258,87573.0,87572.0,0.001]
[1745244864472,0.48828938,87573.0,87572.0,0.001]
[1745244864934,0.46714708,87573.0,87572.0,0.001]
[1745244866051,0.58859499,87573.0,87572.0,0.001]
[1745244866274,0.58659499,87573.0,87572.0,0.001]
[1745244866490,0.60979461,87573.0,87572.0,0.001]
[1745244866710,0.4903467,87573.0,87572.0,0.001]
[1745244866985,0.4883467,87573.0,87572.0,0.001]
[1745244867229,0.4903467,87573.0,87572.0,0.001]
[1745244867444,0.71872759,87573.0,87572.0,0.001]
[1745244867662,0.8381755,87573.0,87572.0,0.001]
[1745244868097,0.8361755,87573.0,87572.0,0.001]
[1745244868563,1.2533755,87573.0,87572.0,0.001]
[1745244869220,1.2533755,87573.0,87545.0,0.01142269]
[1745244869221,0.0497,87550.0,87539.0,0.23989288]
[1745244869440,0.0064747,87549.0,87543.0,0.01142295]
[1745244869662,0.02767432,87549.0,87546.0,0.23987249]
[1745244869871,0.02119962,87548.0,87546.0,0.23987249]
[1745244870097,0.02119962,87548.0,87545.0,0.23987662]
[1745244870318,0.02843186,87547.0,87539.0,0.22891866]
[1745244870543,0.01142256,87546.0,87539.0,0.00044969]
[1745244870778,0.01142282,87544.0,87540.0,0.01142334]
[1745244871019,0.02200714,87547.0,87542.0,0.01142308]
[1745244871020,0.00639601,87543.0,87542.0,0.01142308]
[1745244871241,0.4,87545.0,87542.0,0.23988228]
[1745244871450,0.00640319,87544.0,87540.0,0.01142334]
[1745244871671,0.01058471,87543.0,87541.0,0.01142321]
[1745244872294,0.01058471,87543.0,87539.0,0.240342]
[1745244872504,0.01058471,87542.0,87540.0,0.01142334]
[1745244872909,0.01058471,87542.0,87541.0,0.22846437]
[1745244873339,0.01058471,87542.0,87540.0,0.01142334]
[1745244873547,0.01058471,87541.0,87540.0,0.01142334]
[1745244875247,0.01058471,87541.0,87539.0,0.00044969]
[1745244875450,0.23904951,87541.0,87539.0,0.00044969]
[1745244876119,0.01058471,87540.0,87539.0,0.00044969]
[1745244876536,0.03183583,87540.0,87539.0,0.00044969]
[1745244877285,0.15128374,87540.0,87539.0,0.00044969]
[1745244877500,0.59698374,87540.0,87539.0,0.00044969]
[1745244878656,0.43183583,87540.0,87539.0,0.22891928]
[1745244878885,0.41058471,87540.0,87539.0,0.22891928]
[1745244879234,0.00012,87541.0,87539.0,0.22891928]
[1745244880773,0.001,87540.0,87539.0,0.22891928]
[1745244880997,0.00012,87541.0,87539.0,0.22891928]
[1745244881425,0.00112,87541.0,87539.0,0.22891928]
[1745244881625,0.00012,87541.0,87539.0,0.22891928]
[1745244881836,0.00012,87541.0,87540.0,0.18277326]
[1745244882043,0.4,87552.0,87544.0,0.01142282]
[1745244882277,4e-05,87560.0,87551.0,0.24297913]
[1745244882496,4e-05,87560.0,87559.0,0.2284174]
[1745244882497,8e-05,87560.0,87559.0,0.2284174]
[1745244882924,8e-05,87560.0,87559.0,0.23070125]
[1745244883139,8e-05,87560.0,87559.0,0.2284174]
[1745244883361,0.00012,87560.0,87559.0,0.2284174]
[1745244883578,0.00016,87560.0,87559.0,0.23070125]
[1745244883804,0.4,87573.0,87559.0,0.23070125]
[1745244883805,0.4,87573.0,87572.0,0.2283835]
[1745244884024,0.4,87573.0,87572.0,0.36237226]
[1745244884471,1e-08,87587.0,87586.0,0.22834699]
[1745244884703,1e-08,87587.0,87586.0,0.36461897]
[1745244884940,1e-08,87587.0,87586.0,0.36233575]
[1745244885185,1e-08,87587.0,87586.0,0.36278544]
[1745244885873,1e-08,87587.0,87586.0,0.85748544]
[1745244886405,1e-08,87587.0,87586.0,0.80878544]
[1745244889084,0.91586914,87600.0,87598.0,0.24285656]
[1745244889309,0.91586914,87600.0,87598.0,0.22831571]
[1745244889533,0.00698317,87599.0,87598.0,0.22831571]
[1745244890231,0.91586914,87600.0,87598.0,0.22831571]
[1745244890714,0.01141695,87589.0,87578.0,0.01141839]
[1745244890934,0.22832041,87597.0,87592.0,0.01141656]
[1745244891150,0.01141578,87598.0,87592.0,0.01141656]
[1745244891341,0.01141604,87596.0,87592.0,0.01141656]
[1745244891548,0.22833359,87592.0,87585.0,0.01141748]
[1745244891756,0.01141578,87598.0,87587.0,0.01141721]
[1745244891985,0.01141604,87596.0,87591.0,0.01141669]
[1745244892225,0.23973997,87595.0,87591.0,0.01141669]
[1745244892445,0.01141604,87596.0,87592.0,0.01141656]
[1745244893772,0.0002,87598.0,87596.0,0.22831996]
[1745244893983,0.0012,87598.0,87596.0,0.22831996]
[1745244894224,0.00024,87598.0,87596.0,0.22831996]
[1745244894430,0.40024,87598.0,87596.0,0.22831996]
[1745244895064,0.40124,87598.0,87596.0,0.22831996]
[1745244895274,0.4,87597.0,87596.0,0.22831996]
[1745244896396,0.00136,87598.0,87596.0,0.22831996]
[1745244896611,0.00036,87598.0,87597.0,0.35682384]
[1745244896833,0.00036,87598.0,87597.0,0.35454085]
[1745244897269,0.00036,87598.0,87597.0,0.47398876]
[1745244897522,0.00136,87598.0,87597.0,0.47398876]
[1745244897814,0.00036,87598.0,87597.0,0.47398876]
[1745244898015,0.0014,87598.0,87597.0,0.47398876]
[1745244898222,0.00144,87598.0,87597.0,0.47398876]
[1745244898654,0.00144,87598.0,87597.0,0.13398876]
[1745244898866,0.00144,87598.0,87596.0,0.22831996]
[1745244900022,0.00044,87598.0,87596.0,0.22831996]
[1745244900237,0.00144,87598.0,87596.0,0.22831996]
[1745244902366,0.00144,87598.0,87595.0,0.01141617]
[1745244902367,0.01141669,87591.0,87585.0,0.01141748]
[1745244902589,0.11944791,87597.0,87588.0,0.22834178]
[1745244902809,0.40144,87598.0,87593.0,0.01141643]
[1745244903014,0.40144,87598.0,87597.0,0.22831832]
[1745244903443,0.00044,87598.0,87597.0,0.24285917]
[1745244903912,0.00044,87598.0,87597.0,0.70230708]
[1745244904329,0.00144,87598.0,87597.0,0.70230708]
[1745244908447,1e-08,87598.0,87597.0,0.70230708]
[1745244909728,0.91686914,87600.0,87599.0,0.58285395]
[1745244909951,0.91686914,87600.0,87599.0,0.70230186]
[1745244910425,0.91686914,87600.0,87599.0,1.11410186]
[1745244910870,0.91669645,87600.0,87599.0,1.11410186]
[1745244911118,0.91669645,87600.0,87599.0,1.11510186]
[1745244911351,0.91669645,87600.0,87599.0,0.001]
[1745244912114,1.08524436,87600.0,87599.0,0.001]
[1745244912364,1.53234436,87600.0,87599.0,0.001]
[1745244912603,1.53234436,87600.0,87574.0,0.22837795]
[1745244912604,0.01141669,87591.0,87560.0,0.27902314]
[1745244912857,0.01141695,87589.0,87583.0,0.01141774]
[1745244913108,0.01041695,87589.0,87586.0,0.01141734]
[1745244913355,0.01141695,87589.0,87586.0,0.01141734]
[1745244913599,0.01141708,87588.0,87584.0,0.01141761]
[1745244913860,0.0114163,87594.0,87585.0,0.01141748]
[1745244914061,0.01141643,87593.0,87589.0,0.01141695]
[1745244914276,0.01141643,87593.0,87588.0,0.01141708]
[1745244914484,0.0114163,87594.0,87589.0,0.01141695]
[1745244914702,0.4162,87599.0,87591.0,0.01141669]
[1745244914913,0.4162,87599.0,87596.0,0.01141604]
[1745244915126,0.4162,87599.0,87595.0,0.22832108]
[1745244915127,0.4162,87599.0,87594.0,0.0114163]
[1745244915344,0.4162,87599.0,87596.0,0.24018606]
[1745244915555,0.91669645,87600.0,87599.0,0.2283131]
[1745244915770,0.91669645,87600.0,87597.0,0.23973423]
[1745244916444,0.4,87599.0,87597.0,0.23973423]
[1745244916688,0.40033471,87600.0,87599.0,0.58285395]
[1745244916957,0.40033471,87600.0,87599.0,0.70230186]
[1745244917424,0.40033471,87600.0,87599.0,0.75120186]
[1745244917883,0.40233471,87600.0,87599.0,0.75120186]
[1745244918582,0.0004216,87608.0,87607.0,0.2428331]
[1745244918802,1e-08,87609.0,87608.0,0.01454085]
[1745244919027,1e-08,87609.0,87608.0,0.13398876]
[1745244919282,1e-08,87609.0,87608.0,0.13627114]
[1745244919523,1e-08,87609.0,87608.0,0.13398876]
[1745244919786,1e-08,87609.0,87607.0,0.33461225]
[1745244920006,1e-08,87609.0,87607.0,0.10632]
[1745244920218,1e-08,87609.0,87608.0,0.00228254]
[1745244920440,1e-08,87609.0,87608.0,0.47398876]
[1745244922598,1e-08,87609.0,87608.0,0.58030876]
[1745244922802,1e-08,87609.0,87608.0,0.58230876]
[1745244924666,1e-08,87609.0,87608.0,0.47598876]
[1745244924917,1e-08,87609.0,87608.0,0.58230876]
[1745244925547,0.00114901,87620.0,87619.0,0.24280184]
[1745244926381,0.00114901,87620.0,87619.0,0.25438664]
[1745244926972,0.00118901,87620.0,87619.0,0.25438664]
[1745244927366,0.00122901,87620.0,87619.0,0.25438664]
[1745244927576,0.00126901,87620.0,87619.0,0.25438664]
[1745244927784,0.00130901,87620.0,87619.0,0.23984579]
[1745244927988,0.00134901,87620.0,87619.0,0.23984579]
[1745244928192,0.00138901,87620.0,87619.0,0.23984579]
[1745244928397,0.00142901,87620.0,87619.0,0.23984579]
[1745244928616,0.00146901,87620.0,87619.0,0.37383455]
[1745244928815,0.00150901,87620.0,87619.0,0.37383455]
[1745244929435,0.00150901,87620.0,87619.0,0.23984579]
[1745244930048,0.00789724,87620.0,87619.0,0.23984579]
[1745244930876,0.00789724,87620.0,87619.0,0.24084579]
[1745244931112,0.00789724,87620.0,87619.0,0.22926099]
[1745244932364,0.40789724,87620.0,87619.0,0.22926099]
[1745244933226,0.00789724,87620.0,87619.0,0.22926099]
[1745244933659,0.00789724,87620.0,87619.0,0.001]
[1745244933853,0.05589724,87620.0,87619.0,0.001]
[1745244934272,0.45589724,87620.0,87619.0,0.001]
[1745244934829,0.40789724,87620.0,87619.0,0.001]
[1745244935046,0.40789724,87620.0,87619.0,0.22926099]
[1745244935297,0.40889724,87620.0,87619.0,0.22926099]
[1745244935518,0.40789724,87620.0,87619.0,0.22926099]
[1745244936035,0.40889724,87620.0,87619.0,0.70553212]
[1745244936243,0.00789724,87620.0,87619.0,0.36324975]
[1745244936654,0.00150901,87620.0,87619.0,0.36324975]
[1745244937422,0.27906739,87620.0,87619.0,0.001]
[1745244937836,0.28391029,87620.0,87619.0,0.001]
[1745244938232,0.29502978,87620.0,87619.0,0.001]
[1745244938430,0.68627389,87620.0,87619.0,0.001]
[1745244938675,0.9557218,87620.0,87619.0,0.001]
[1745244939589,0.9577218,87620.0,87619.0,0.001]
[1745244939809,0.83627389,87620.0,87619.0,0.001]
[1745244939978,0.83827389,87620.0,87619.0,0.001]
[1745244940684,0.96608871,87620.0,87619.0,0.001]
[1745244941128,0.22831832,87597.0,87596.0,0.00044996]
[1745244941353,0.28444093,87597.0,87596.0,0.00044996]
[1745244943328,0.68444093,87597.0,87596.0,0.00044996]
[1745244943952,0.68544093,87597.0,87596.0,0.00044996]
[1745244944178,0.80488884,87597.0,87596.0,0.00044996]
[1745244945327,0.81330174,87597.0,87596.0,0.00044996]
[1745244945553,0.83456484,87597.0,87596.0,0.00044996]
[1745244945772,0.83460484,87597.0,87596.0,0.00044996]
[1745244945994,0.83464484,87597.0,87596.0,0.00044996]
[1745244946236,0.84532008,87597.0,87596.0,0.00044996]
[1745244946466,0.84536008,87597.0,87596.0,0.00044996]
[1745244946684,0.84736008,87597.0,87596.0,0.00044996]
[1745244946911,0.71753927,87597.0,87596.0,0.00044996]
[1745244947137,0.64578142,87597.0,87596.0,0.00044996]
[1745244947376,0.62451832,87597.0,87596.0,0.00044996]
[1745244947651,0.4012,87597.0,87596.0,0.00044996]